{"text_format":"3","workbook":"xlsx","n_sheets":3,"sheets":["Månedlig budgetrapport","Udgifter hver måned","Yderligere data"],"not_rendered":{"charts":1,"defined_names":4,"pivot_tables":2},"read":"whole","date_system":"1900"}

{"sheet":"Månedlig budgetrapport","index":0,"n_rows":34,"n_cols":13,"rows_kept":34,"merged":[[7,1,10,1],[7,5,10,5],[7,6,10,6],[12,1,16,1],[12,5,16,5],[12,6,16,6]]}
[null,"Budgetoversigt",{"$nulls":7},"Budgetoversigt"]
[null,"Saldo"]
[null,"Forventet saldo","(Forventet minus udgifter)",{"$nulls":3},{"$f":"D17-SUM(Budgetdetaljer[Forventede omkostninger])","v":{"v":1585,"d":"kr. 1,585"}}]
[null,"Faktisk saldo ","(Faktisk minus udgifter)",{"$nulls":3},{"$f":"D11-SUM(Budgetdetaljer[Faktiske omkostninger])","v":{"v":1740,"d":"kr. 1,740"}}]
[null,"Difference","(Faktisk minus forventede)",{"$nulls":3},{"$f":"G4-G3","v":{"v":155,"d":"kr. 155"}}]
[]
[null,"Indkomst",{"$nulls":3},"Udgifter",{"$nulls":3},"Højreklik på pivottabellen nedenfor, og klik derefter på Opdater for at opdatere"]
[null,"FAKTISKE","Indkomst 1",{"v":5800,"d":"kr. 5,800"},null,"FAKTISKE",{"$f":"SUM(Budgetdetaljer[Faktiske omkostninger])","v":{"v":7860,"d":"kr. 7,860"}}]
[null,null,"Indkomst 2",{"v":2300,"d":"kr. 2,300"},{"$nulls":5},"Kategori","Forventede omkostninger ","Faktiske omkostninger ","Difference "]
[null,null,"Ekstra indkomst",{"v":1500,"d":"kr. 1,500"},{"$nulls":5},"Bolig",{"v":2830,"d":"kr. 2,830"},{"v":2702,"d":"kr. 2,702"},{"v":128,"d":"kr. 128"}]
[null,null,"Indkomst i alt",{"$f":"SUM(D8:D10)","v":{"v":9600,"d":"kr. 9,600"}}]
[{"$nulls":9},"Børn",{"v":140,"d":"kr. 140"},{"v":140,"d":"kr. 140"},{"v":0,"d":"kr. 0"}]
[null,"FORVENTEDE",{"$nulls":3},"FORVENTEDE",{"$f":"SUM(Budgetdetaljer[Forventede omkostninger])","v":{"v":7915,"d":"kr. 7,915"}}]
[null,null,"Indkomst 1",{"v":6000,"d":"kr. 6,000"},{"$nulls":5},"Forsikring",{"v":900,"d":"kr. 900"},{"v":900,"d":"kr. 900"},{"v":0,"d":"kr. 0"}]
[null,null,"Indkomst 2",{"v":1000,"d":"kr. 1,000"}]
[null,null,"Ekstra indkomst",{"v":2500,"d":"kr. 2,500"},{"$nulls":5},"Fødevarer",{"v":1100,"d":"kr. 1,100"},{"v":1320,"d":"kr. 1,320"},{"v":-220,"d":"(kr.220)"}]
[null,null,"Indkomst i alt",{"$f":"SUM(D14:D16)","v":{"v":9500,"d":"kr. 9,500"}}]
[{"$nulls":9},"Gaver og velgørenhed",{"v":100,"d":"kr. 100"},{"v":125,"d":"kr. 125"},{"v":-25,"d":"(kr.25)"}]
[]
[{"$nulls":9},"Kæledyr",{"v":170,"d":"kr. 170"},{"v":100,"d":"kr. 100"},{"v":70,"d":"kr. 70"}]
[]
[{"$nulls":9},"Lån",{"v":200,"d":"kr. 200"},{"v":200,"d":"kr. 200"},{"v":0,"d":"kr. 0"}]
[]
[{"$nulls":9},"Opsparing eller investeringer",{"v":200,"d":"kr. 200"},{"v":200,"d":"kr. 200"},{"v":0,"d":"kr. 0"}]
[]
[{"$nulls":9},"Personlig pleje",{"v":150,"d":"kr. 150"},{"v":140,"d":"kr. 140"},{"v":10,"d":"kr. 10"}]
[]
[{"$nulls":9},"Skatter",{"v":300,"d":"kr. 300"},{"v":300,"d":"kr. 300"},{"v":0,"d":"kr. 0"}]
[]
[{"$nulls":9},"Transport",{"v":1425,"d":"kr. 1,425"},{"v":1375,"d":"kr. 1,375"},{"v":50,"d":"kr. 50"}]
[]
[{"$nulls":9},"Underholdning",{"v":400,"d":"kr. 400"},{"v":358,"d":"kr. 358"},{"v":42,"d":"kr. 42"}]
[]
[{"$nulls":9},"Grand Total",{"v":7915,"d":"kr. 7,915"},{"v":7860,"d":"kr. 7,860"},{"v":55,"d":"kr. 55"}]

{"sheet":"Udgifter hver måned","index":1,"n_rows":62,"n_cols":7,"rows_kept":62}
[null,"Udgifter hver måned"]
[null,"Beskrivelse","Kategori","Forventede omkostninger","Faktiske omkostninger","Difference","Oversigt over faktiske omkostninger"]
[null,"Aktiviteter uden for skolen","Børn",{"v":40,"d":"kr.40"},{"v":40,"d":"kr.40"},{"$f":"Budgetdetaljer[[#This Row],[Forventede omkostninger]]-Budgetdetaljer[[#This Row],[Faktiske omkostninger]]","v":{"v":0,"d":"kr.0"}},{"$f":"Budgetdetaljer[[#This Row],[Faktiske omkostninger]]","v":{"v":40,"d":"$40"}}]
[null,"Medicin","Børn",null,null,{"$f":"Budgetdetaljer[[#This Row],[Forventede omkostninger]]-Budgetdetaljer[[#This Row],[Faktiske omkostninger]]","v":{"v":0,"d":"kr.0"}},{"$f":"Budgetdetaljer[[#This Row],[Faktiske omkostninger]]","v":{"v":0,"d":"$0"}}]
[null,"Skoletilbehør","Børn",null,null,{"$f":"Budgetdetaljer[[#This Row],[Forventede omkostninger]]-Budgetdetaljer[[#This Row],[Faktiske omkostninger]]","v":{"v":0,"d":"kr.0"}},{"$f":"Budgetdetaljer[[#This Row],[Faktiske omkostninger]]","v":{"v":0,"d":"$0"}}]
[null,"Undervisningsgebyr","Børn",{"v":100,"d":"kr.100"},{"v":100,"d":"kr.100"},{"$f":"Budgetdetaljer[[#This Row],[Forventede omkostninger]]-Budgetdetaljer[[#This Row],[Faktiske omkostninger]]","v":{"v":0,"d":"kr.0"}},{"$f":"Budgetdetaljer[[#This Row],[Faktiske omkostninger]]","v":{"v":100,"d":"$100"}}]
[null,"Koncerter","Underholdning",{"v":50,"d":"kr.50"},{"v":40,"d":"kr.40"},{"$f":"Budgetdetaljer[[#This Row],[Forventede omkostninger]]-Budgetdetaljer[[#This Row],[Faktiske omkostninger]]","v":{"v":10,"d":"kr.10"}},{"$f":"Budgetdetaljer[[#This Row],[Faktiske omkostninger]]","v":{"v":40,"d":"$40"}}]
[null,"Teaterbesøg","Underholdning",{"v":200,"d":"kr.200"},{"v":150,"d":"kr.150"},{"$f":"Budgetdetaljer[[#This Row],[Forventede omkostninger]]-Budgetdetaljer[[#This Row],[Faktiske omkostninger]]","v":{"v":50,"d":"kr.50"}},{"$f":"Budgetdetaljer[[#This Row],[Faktiske omkostninger]]","v":{"v":150,"d":"$150"}}]
[null,"Film","Underholdning",{"v":50,"d":"kr.50"},{"v":28,"d":"kr.28"},{"$f":"Budgetdetaljer[[#This Row],[Forventede omkostninger]]-Budgetdetaljer[[#This Row],[Faktiske omkostninger]]","v":{"v":22,"d":"kr.22"}},{"$f":"Budgetdetaljer[[#This Row],[Faktiske omkostninger]]","v":{"v":28,"d":"$28"}}]
[null,"Musik (cd'er, overførsler osv.)","Underholdning",{"v":50,"d":"kr.50"},{"v":30,"d":"kr.30"},{"$f":"Budgetdetaljer[[#This Row],[Forventede omkostninger]]-Budgetdetaljer[[#This Row],[Faktiske omkostninger]]","v":{"v":20,"d":"kr.20"}},{"$f":"Budgetdetaljer[[#This Row],[Faktiske omkostninger]]","v":{"v":30,"d":"$30"}}]
[null,"Sportsbegivenheder","Underholdning",{"v":0,"d":"kr.0"},{"v":40,"d":"kr.40"},{"$f":"Budgetdetaljer[[#This Row],[Forventede omkostninger]]-Budgetdetaljer[[#This Row],[Faktiske omkostninger]]","v":{"v":-40,"d":"(kr.40)"}},{"$f":"Budgetdetaljer[[#This Row],[Faktiske omkostninger]]","v":{"v":40,"d":"$40"}}]
[null,"Video/dvd (køb)","Underholdning",{"v":20,"d":"kr.20"},{"v":50,"d":"kr.50"},{"$f":"Budgetdetaljer[[#This Row],[Forventede omkostninger]]-Budgetdetaljer[[#This Row],[Faktiske omkostninger]]","v":{"v":-30,"d":"(kr.30)"}},{"$f":"Budgetdetaljer[[#This Row],[Faktiske omkostninger]]","v":{"v":50,"d":"$50"}}]
[null,"Video/dvd (leje)","Underholdning",{"v":30,"d":"kr.30"},{"v":20,"d":"kr.20"},{"$f":"Budgetdetaljer[[#This Row],[Forventede omkostninger]]-Budgetdetaljer[[#This Row],[Faktiske omkostninger]]","v":{"v":10,"d":"kr.10"}},{"$f":"Budgetdetaljer[[#This Row],[Faktiske omkostninger]]","v":{"v":20,"d":"$20"}}]
[null,"Restaurantbesøg","Fødevarer",{"v":1000,"d":"kr.1,000"},{"v":1200,"d":"kr.1,200"},{"$f":"Budgetdetaljer[[#This Row],[Forventede omkostninger]]-Budgetdetaljer[[#This Row],[Faktiske omkostninger]]","v":{"v":-200,"d":"(kr.200)"}},{"$f":"Budgetdetaljer[[#This Row],[Faktiske omkostninger]]","v":{"v":1200,"d":"$1,200"}}]
[null,"Dagligvarer","Fødevarer",{"v":100,"d":"kr.100"},{"v":120,"d":"kr.120"},{"$f":"Budgetdetaljer[[#This Row],[Forventede omkostninger]]-Budgetdetaljer[[#This Row],[Faktiske omkostninger]]","v":{"v":-20,"d":"(kr.20)"}},{"$f":"Budgetdetaljer[[#This Row],[Faktiske omkostninger]]","v":{"v":120,"d":"$120"}}]
[null,"Velgørenhed 1","Gaver og velgørenhed",{"v":75,"d":"kr.75"},{"v":100,"d":"kr.100"},{"$f":"Budgetdetaljer[[#This Row],[Forventede omkostninger]]-Budgetdetaljer[[#This Row],[Faktiske omkostninger]]","v":{"v":-25,"d":"(kr.25)"}},{"$f":"Budgetdetaljer[[#This Row],[Faktiske omkostninger]]","v":{"v":100,"d":"$100"}}]
[null,"Velgørenhed 2","Gaver og velgørenhed",{"v":25,"d":"kr.25"},{"v":25,"d":"kr.25"},{"$f":"Budgetdetaljer[[#This Row],[Forventede omkostninger]]-Budgetdetaljer[[#This Row],[Faktiske omkostninger]]","v":{"v":0,"d":"kr.0"}},{"$f":"Budgetdetaljer[[#This Row],[Faktiske omkostninger]]","v":{"v":25,"d":"$25"}}]
[null,"Gave 1","Gaver og velgørenhed",null,null,{"$f":"Budgetdetaljer[[#This Row],[Forventede omkostninger]]-Budgetdetaljer[[#This Row],[Faktiske omkostninger]]","v":{"v":0,"d":"kr.0"}},{"$f":"Budgetdetaljer[[#This Row],[Faktiske omkostninger]]","v":{"v":0,"d":"$0"}}]
[null,"Gave 2","Gaver og velgørenhed",null,null,{"$f":"Budgetdetaljer[[#This Row],[Forventede omkostninger]]-Budgetdetaljer[[#This Row],[Faktiske omkostninger]]","v":{"v":0,"d":"kr.0"}},{"$f":"Budgetdetaljer[[#This Row],[Faktiske omkostninger]]","v":{"v":0,"d":"$0"}}]
[null,"Kabel/satellit","Bolig",{"v":100,"d":"kr.100"},{"v":100,"d":"kr.100"},{"$f":"Budgetdetaljer[[#This Row],[Forventede omkostninger]]-Budgetdetaljer[[#This Row],[Faktiske omkostninger]]","v":{"v":0,"d":"kr.0"}},{"$f":"Budgetdetaljer[[#This Row],[Faktiske omkostninger]]","v":{"v":100,"d":"$100"}}]
[null,"Elektricitet","Bolig",{"v":45,"d":"kr.45"},{"v":50,"d":"kr.50"},{"$f":"Budgetdetaljer[[#This Row],[Forventede omkostninger]]-Budgetdetaljer[[#This Row],[Faktiske omkostninger]]","v":{"v":-5,"d":"(kr.5)"}},{"$f":"Budgetdetaljer[[#This Row],[Faktiske omkostninger]]","v":{"v":50,"d":"$50"}}]
[null,"Benzin","Bolig",{"v":300,"d":"kr.300"},{"v":400,"d":"kr.400"},{"$f":"Budgetdetaljer[[#This Row],[Forventede omkostninger]]-Budgetdetaljer[[#This Row],[Faktiske omkostninger]]","v":{"v":-100,"d":"(kr.100)"}},{"$f":"Budgetdetaljer[[#This Row],[Faktiske omkostninger]]","v":{"v":400,"d":"$400"}}]
[null,"Rengøringshjælp","Bolig",{"v":200,"d":"kr.200"},null,{"$f":"Budgetdetaljer[[#This Row],[Forventede omkostninger]]-Budgetdetaljer[[#This Row],[Faktiske omkostninger]]","v":{"v":200,"d":"kr.200"}},{"$f":"Budgetdetaljer[[#This Row],[Faktiske omkostninger]]","v":{"v":0,"d":"$0"}}]
[null,"Vedligeholdelse","Bolig",{"v":200,"d":"kr.200"},{"v":150,"d":"kr.150"},{"$f":"Budgetdetaljer[[#This Row],[Forventede omkostninger]]-Budgetdetaljer[[#This Row],[Faktiske omkostninger]]","v":{"v":50,"d":"kr.50"}},{"$f":"Budgetdetaljer[[#This Row],[Faktiske omkostninger]]","v":{"v":150,"d":"$150"}}]
[null,"Realkreditlån eller leje","Bolig",{"v":1700,"d":"kr.1,700"},{"v":1700,"d":"kr.1,700"},{"$f":"Budgetdetaljer[[#This Row],[Forventede omkostninger]]-Budgetdetaljer[[#This Row],[Faktiske omkostninger]]","v":{"v":0,"d":"kr.0"}},{"$f":"Budgetdetaljer[[#This Row],[Faktiske omkostninger]]","v":{"v":1700,"d":"$1,700"}}]
[null,"Naturgas/olie","Bolig",null,null,{"$f":"Budgetdetaljer[[#This Row],[Forventede omkostninger]]-Budgetdetaljer[[#This Row],[Faktiske omkostninger]]","v":{"v":0,"d":"kr.0"}},{"$f":"Budgetdetaljer[[#This Row],[Faktiske omkostninger]]","v":{"v":0,"d":"$0"}}]
[null,"Online-/internettjeneste","Bolig",{"v":100,"d":"kr.100"},{"v":100,"d":"kr.100"},{"$f":"Budgetdetaljer[[#This Row],[Forventede omkostninger]]-Budgetdetaljer[[#This Row],[Faktiske omkostninger]]","v":{"v":0,"d":"kr.0"}},{"$f":"Budgetdetaljer[[#This Row],[Faktiske omkostninger]]","v":{"v":100,"d":"$100"}}]
[null,"Telefon (mobil)","Bolig",{"v":60,"d":"kr.60"},{"v":60,"d":"kr.60"},{"$f":"Budgetdetaljer[[#This Row],[Forventede omkostninger]]-Budgetdetaljer[[#This Row],[Faktiske omkostninger]]","v":{"v":0,"d":"kr.0"}},{"$f":"Budgetdetaljer[[#This Row],[Faktiske omkostninger]]","v":{"v":60,"d":"$60"}}]
[null,"Telefon (privat)","Bolig",{"v":35,"d":"kr.35"},{"v":39,"d":"kr.39"},{"$f":"Budgetdetaljer[[#This Row],[Forventede omkostninger]]-Budgetdetaljer[[#This Row],[Faktiske omkostninger]]","v":{"v":-4,"d":"(kr.4)"}},{"$f":"Budgetdetaljer[[#This Row],[Faktiske omkostninger]]","v":{"v":39,"d":"$39"}}]
[null,"Forsyninger","Bolig",{"v":40,"d":"kr.40"},{"v":55,"d":"kr.55"},{"$f":"Budgetdetaljer[[#This Row],[Forventede omkostninger]]-Budgetdetaljer[[#This Row],[Faktiske omkostninger]]","v":{"v":-15,"d":"(kr.15)"}},{"$f":"Budgetdetaljer[[#This Row],[Faktiske omkostninger]]","v":{"v":55,"d":"$55"}}]
[null,"Renovation og genbrug","Bolig",{"v":25,"d":"kr.25"},{"v":22,"d":"kr.22"},{"$f":"Budgetdetaljer[[#This Row],[Forventede omkostninger]]-Budgetdetaljer[[#This Row],[Faktiske omkostninger]]","v":{"v":3,"d":"kr.3"}},{"$f":"Budgetdetaljer[[#This Row],[Faktiske omkostninger]]","v":{"v":22,"d":"$22"}}]
[null,"Vand og kloak","Bolig",{"v":25,"d":"kr.25"},{"v":26,"d":"kr.26"},{"$f":"Budgetdetaljer[[#This Row],[Forventede omkostninger]]-Budgetdetaljer[[#This Row],[Faktiske omkostninger]]","v":{"v":-1,"d":"(kr.1)"}},{"$f":"Budgetdetaljer[[#This Row],[Faktiske omkostninger]]","v":{"v":26,"d":"$26"}}]
[null,"Sundhed","Forsikring",{"v":400,"d":"kr.400"},{"v":400,"d":"kr.400"},{"$f":"Budgetdetaljer[[#This Row],[Forventede omkostninger]]-Budgetdetaljer[[#This Row],[Faktiske omkostninger]]","v":{"v":0,"d":"kr.0"}},{"$f":"Budgetdetaljer[[#This Row],[Faktiske omkostninger]]","v":{"v":400,"d":"$400"}}]
[null,"Hjem","Forsikring",{"v":400,"d":"kr.400"},{"v":400,"d":"kr.400"},{"$f":"Budgetdetaljer[[#This Row],[Forventede omkostninger]]-Budgetdetaljer[[#This Row],[Faktiske omkostninger]]","v":{"v":0,"d":"kr.0"}},{"$f":"Budgetdetaljer[[#This Row],[Faktiske omkostninger]]","v":{"v":400,"d":"$400"}}]
[null,"Livsforsikring","Forsikring",{"v":100,"d":"kr.100"},{"v":100,"d":"kr.100"},{"$f":"Budgetdetaljer[[#This Row],[Forventede omkostninger]]-Budgetdetaljer[[#This Row],[Faktiske omkostninger]]","v":{"v":0,"d":"kr.0"}},{"$f":"Budgetdetaljer[[#This Row],[Faktiske omkostninger]]","v":{"v":100,"d":"$100"}}]
[null,"Kreditkort 1","Lån",{"v":200,"d":"kr.200"},{"v":200,"d":"kr.200"},{"$f":"Budgetdetaljer[[#This Row],[Forventede omkostninger]]-Budgetdetaljer[[#This Row],[Faktiske omkostninger]]","v":{"v":0,"d":"kr.0"}},{"$f":"Budgetdetaljer[[#This Row],[Faktiske omkostninger]]","v":{"v":200,"d":"$200"}}]
[null,"Kreditkort 2","Lån",null,null,{"$f":"Budgetdetaljer[[#This Row],[Forventede omkostninger]]-Budgetdetaljer[[#This Row],[Faktiske omkostninger]]","v":{"v":0,"d":"kr.0"}},{"$f":"Budgetdetaljer[[#This Row],[Faktiske omkostninger]]","v":{"v":0,"d":"$0"}}]
[null,"Kreditkort 3","Lån",null,null,{"$f":"Budgetdetaljer[[#This Row],[Forventede omkostninger]]-Budgetdetaljer[[#This Row],[Faktiske omkostninger]]","v":{"v":0,"d":"kr.0"}},{"$f":"Budgetdetaljer[[#This Row],[Faktiske omkostninger]]","v":{"v":0,"d":"$0"}}]
[null,"Personligt","Lån",null,null,{"$f":"Budgetdetaljer[[#This Row],[Forventede omkostninger]]-Budgetdetaljer[[#This Row],[Faktiske omkostninger]]","v":{"v":0,"d":"kr.0"}},{"$f":"Budgetdetaljer[[#This Row],[Faktiske omkostninger]]","v":{"v":0,"d":"$0"}}]
[null,"Elev","Lån",null,null,{"$f":"Budgetdetaljer[[#This Row],[Forventede omkostninger]]-Budgetdetaljer[[#This Row],[Faktiske omkostninger]]","v":{"v":0,"d":"kr.0"}},{"$f":"Budgetdetaljer[[#This Row],[Faktiske omkostninger]]","v":{"v":0,"d":"$0"}}]
[null,"Tøj","Personlig pleje",{"v":150,"d":"kr.150"},{"v":140,"d":"kr.140"},{"$f":"Budgetdetaljer[[#This Row],[Forventede omkostninger]]-Budgetdetaljer[[#This Row],[Faktiske omkostninger]]","v":{"v":10,"d":"kr.10"}},{"$f":"Budgetdetaljer[[#This Row],[Faktiske omkostninger]]","v":{"v":140,"d":"$140"}}]
[null,"Rensetøj","Personlig pleje",null,null,{"$f":"Budgetdetaljer[[#This Row],[Forventede omkostninger]]-Budgetdetaljer[[#This Row],[Faktiske omkostninger]]","v":{"v":0,"d":"kr.0"}},{"$f":"Budgetdetaljer[[#This Row],[Faktiske omkostninger]]","v":{"v":0,"d":"$0"}}]
[null,"Hår/negle","Personlig pleje",null,null,{"$f":"Budgetdetaljer[[#This Row],[Forventede omkostninger]]-Budgetdetaljer[[#This Row],[Faktiske omkostninger]]","v":{"v":0,"d":"kr.0"}},{"$f":"Budgetdetaljer[[#This Row],[Faktiske omkostninger]]","v":{"v":0,"d":"$0"}}]
[null,"Helsecenter","Personlig pleje",null,null,{"$f":"Budgetdetaljer[[#This Row],[Forventede omkostninger]]-Budgetdetaljer[[#This Row],[Faktiske omkostninger]]","v":{"v":0,"d":"kr.0"}},{"$f":"Budgetdetaljer[[#This Row],[Faktiske omkostninger]]","v":{"v":0,"d":"$0"}}]
[null,"Medicin","Personlig pleje",null,null,{"$f":"Budgetdetaljer[[#This Row],[Forventede omkostninger]]-Budgetdetaljer[[#This Row],[Faktiske omkostninger]]","v":{"v":0,"d":"kr.0"}},{"$f":"Budgetdetaljer[[#This Row],[Faktiske omkostninger]]","v":{"v":0,"d":"$0"}}]
[null,"Fødevarer","Kæledyr",{"v":150,"d":"kr.150"},{"v":75,"d":"kr.75"},{"$f":"Budgetdetaljer[[#This Row],[Forventede omkostninger]]-Budgetdetaljer[[#This Row],[Faktiske omkostninger]]","v":{"v":75,"d":"kr.75"}},{"$f":"Budgetdetaljer[[#This Row],[Faktiske omkostninger]]","v":{"v":75,"d":"$75"}}]
[null,"Soignering","Kæledyr",{"v":20,"d":"kr.20"},{"v":25,"d":"kr.25"},{"$f":"Budgetdetaljer[[#This Row],[Forventede omkostninger]]-Budgetdetaljer[[#This Row],[Faktiske omkostninger]]","v":{"v":-5,"d":"(kr.5)"}},{"$f":"Budgetdetaljer[[#This Row],[Faktiske omkostninger]]","v":{"v":25,"d":"$25"}}]
[null,"Medicin","Kæledyr",null,null,{"$f":"Budgetdetaljer[[#This Row],[Forventede omkostninger]]-Budgetdetaljer[[#This Row],[Faktiske omkostninger]]","v":{"v":0,"d":"kr.0"}},{"$f":"Budgetdetaljer[[#This Row],[Faktiske omkostninger]]","v":{"v":0,"d":"$0"}}]
[null,"Legetøj","Kæledyr",null,null,{"$f":"Budgetdetaljer[[#This Row],[Forventede omkostninger]]-Budgetdetaljer[[#This Row],[Faktiske omkostninger]]","v":{"v":0,"d":"kr.0"}},{"$f":"Budgetdetaljer[[#This Row],[Faktiske omkostninger]]","v":{"v":0,"d":"$0"}}]
[null,"Investeringskonto","Opsparing eller investeringer",{"v":200,"d":"kr.200"},{"v":200,"d":"kr.200"},{"$f":"Budgetdetaljer[[#This Row],[Forventede omkostninger]]-Budgetdetaljer[[#This Row],[Faktiske omkostninger]]","v":{"v":0,"d":"kr.0"}},{"$f":"Budgetdetaljer[[#This Row],[Faktiske omkostninger]]","v":{"v":200,"d":"$200"}}]
[null,"Pensionskonto","Opsparing eller investeringer",null,null,{"$f":"Budgetdetaljer[[#This Row],[Forventede omkostninger]]-Budgetdetaljer[[#This Row],[Faktiske omkostninger]]","v":{"v":0,"d":"kr.0"}},{"$f":"Budgetdetaljer[[#This Row],[Faktiske omkostninger]]","v":{"v":0,"d":"$0"}}]
[null,"Føderalt","Skatter",{"v":300,"d":"kr.300"},{"v":300,"d":"kr.300"},{"$f":"Budgetdetaljer[[#This Row],[Forventede omkostninger]]-Budgetdetaljer[[#This Row],[Faktiske omkostninger]]","v":{"v":0,"d":"kr.0"}},{"$f":"Budgetdetaljer[[#This Row],[Faktiske omkostninger]]","v":{"v":300,"d":"$300"}}]
[null,"Lokalt","Skatter",null,null,{"$f":"Budgetdetaljer[[#This Row],[Forventede omkostninger]]-Budgetdetaljer[[#This Row],[Faktiske omkostninger]]","v":{"v":0,"d":"kr.0"}},{"$f":"Budgetdetaljer[[#This Row],[Faktiske omkostninger]]","v":{"v":0,"d":"$0"}}]
[null,"Delstat","Skatter",null,null,{"$f":"Budgetdetaljer[[#This Row],[Forventede omkostninger]]-Budgetdetaljer[[#This Row],[Faktiske omkostninger]]","v":{"v":0,"d":"kr.0"}},{"$f":"Budgetdetaljer[[#This Row],[Faktiske omkostninger]]","v":{"v":0,"d":"$0"}}]
[null,"Pris for bus/taxa","Transport",{"v":100,"d":"kr.100"},{"v":150,"d":"kr.150"},{"$f":"Budgetdetaljer[[#This Row],[Forventede omkostninger]]-Budgetdetaljer[[#This Row],[Faktiske omkostninger]]","v":{"v":-50,"d":"(kr.50)"}},{"$f":"Budgetdetaljer[[#This Row],[Faktiske omkostninger]]","v":{"v":150,"d":"$150"}}]
[null,"Brændstof","Transport",{"v":450,"d":"kr.450"},{"v":400,"d":"kr.400"},{"$f":"Budgetdetaljer[[#This Row],[Forventede omkostninger]]-Budgetdetaljer[[#This Row],[Faktiske omkostninger]]","v":{"v":50,"d":"kr.50"}},{"$f":"Budgetdetaljer[[#This Row],[Faktiske omkostninger]]","v":{"v":400,"d":"$400"}}]
[null,"Forsikring","Transport",{"v":300,"d":"kr.300"},{"v":300,"d":"kr.300"},{"$f":"Budgetdetaljer[[#This Row],[Forventede omkostninger]]-Budgetdetaljer[[#This Row],[Faktiske omkostninger]]","v":{"v":0,"d":"kr.0"}},{"$f":"Budgetdetaljer[[#This Row],[Faktiske omkostninger]]","v":{"v":300,"d":"$300"}}]
[null,"Licenser ","Transport",{"v":25,"d":"kr.25"},{"v":25,"d":"kr.25"},{"$f":"Budgetdetaljer[[#This Row],[Forventede omkostninger]]-Budgetdetaljer[[#This Row],[Faktiske omkostninger]]","v":{"v":0,"d":"kr.0"}},{"$f":"Budgetdetaljer[[#This Row],[Faktiske omkostninger]]","v":{"v":25,"d":"$25"}}]
[null,"Vedligeholdelse","Transport",{"v":100,"d":"kr.100"},{"v":50,"d":"kr.50"},{"$f":"Budgetdetaljer[[#This Row],[Forventede omkostninger]]-Budgetdetaljer[[#This Row],[Faktiske omkostninger]]","v":{"v":50,"d":"kr.50"}},{"$f":"Budgetdetaljer[[#This Row],[Faktiske omkostninger]]","v":{"v":50,"d":"$50"}}]
[null,"Parkeringsafgifter","Transport",null,null,{"$f":"Budgetdetaljer[[#This Row],[Forventede omkostninger]]-Budgetdetaljer[[#This Row],[Faktiske omkostninger]]","v":{"v":0,"d":"kr.0"}},{"$f":"Budgetdetaljer[[#This Row],[Faktiske omkostninger]]","v":{"v":0,"d":"$0"}}]
[null,"Afbetaling på bil","Transport",{"v":450,"d":"kr.450"},{"v":450,"d":"kr.450"},{"$f":"Budgetdetaljer[[#This Row],[Forventede omkostninger]]-Budgetdetaljer[[#This Row],[Faktiske omkostninger]]","v":{"v":0,"d":"kr.0"}},{"$f":"Budgetdetaljer[[#This Row],[Faktiske omkostninger]]","v":{"v":450,"d":"$450"}}]
[null,"I alt",null,{"$f":"SUBTOTAL(109,Budgetdetaljer[Forventede omkostninger])","v":{"v":7915,"d":"kr.7,915"}},{"$f":"SUBTOTAL(109,Budgetdetaljer[Faktiske omkostninger])","v":{"v":7860,"d":"kr.7,860"}},{"$f":"SUBTOTAL(109,Budgetdetaljer[Difference])","v":{"v":55,"d":"kr.55"}}]

{"sheet":"Yderligere data","index":2,"n_rows":15,"n_cols":5,"rows_kept":15}
[null,"Pivottabel for diagrammet Budgetoversigt",null,null,"Opslagsliste for kategorien Budgetdetaljer"]
[null,"Kategori","Faktiske omkostninger ",null,"Opslag i budgetkategori"]
[null,"Bolig",2702,null,"Børn"]
[null,"Børn",140,null,"Underholdning"]
[null,"Forsikring",900,null,"Fødevarer"]
[null,"Fødevarer",1320,null,"Gaver og velgørenhed"]
[null,"Gaver og velgørenhed",125,null,"Bolig"]
[null,"Kæledyr",100,null,"Forsikring"]
[null,"Lån",200,null,"Lån"]
[null,"Opsparing eller investeringer",200,null,"Personlig pleje"]
[null,"Personlig pleje",140,null,"Kæledyr"]
[null,"Skatter",300,null,"Opsparing eller investeringer"]
[null,"Transport",1375,null,"Skatter"]
[null,"Underholdning",358,null,"Transport"]
[null,"Grand Total",7860]